fUSD/lending_fUSD_20260611
["ID","MTS","AMOUNT","RATE_DAILY","PERIOD"]
[424750535,1781124644000,-854.84562266,0.00016176,2]
[424750542,1781124644000,-230.372767,0.00016278,2]
[424750532,1781124644000,-854.84562266,0.0001615,2]
[424750573,1781124644000,-1798.80895522,0.00017153,2]
[424750571,1781124644000,-7336.31,0.00016922,2]
[424750570,1781124644000,-9999.99,0.00016922,2]
[424750572,1781124644000,-4135.31,0.00016922,2]
[424750568,1781124644000,-854.84562266,0.00016837,2]
[424750569,1781124644000,-168.89610414,0.00016875,2]
[424750574,1781124644000,-620.55,0.00017314,2]
[424750580,1781124644000,-382.0,0.00017812,2]
[424750579,1781124644000,-1358.0,0.00017812,2]
[424750578,1781124644000,-3556.0,0.00017812,2]
[424750576,1781124644000,-1865.36488656,0.00017701,2]
[424750577,1781124644000,-1330.0,0.00017807,2]
[424750575,1781124644000,-1472.55704807,0.0001738,2]
[424750584,1781124644000,-933.0,0.00017812,2]
[424750583,1781124644000,-150.0,0.00017812,2]
[424750582,1781124644000,-150.0,0.00017812,2]
[424750581,1781124644000,-1274.0,0.00017812,2]
[424750586,1781124644000,-166.08642978,0.00018,2]
[424750585,1781124644000,-419.0,0.00017812,2]
[424750588,1781124644000,-254.02786009,0.00018046,2]
[424750587,1781124644000,-350.0,0.00018,2]
[424750589,1781124644000,-282.53942145,0.00018128,2]
[424750590,1781124644000,-240.0,0.00018128,2]
[424750592,1781124644000,-1934.38338736,0.00018249,2]
[424750536,1781124644000,-2129.0,0.00016189,2]
[424750567,1781124644000,-854.84562266,0.00016834,2]
[424750565,1781124644000,-854.84562266,0.00016778,2]
[424750591,1781124644000,-166.08642978,0.000182,2]
[424750563,1781124644000,-854.84562266,0.00016683,2]
[424750566,1781124644000,-854.84562266,0.00016821,2]
[424750537,1781124644000,-854.84562266,0.00016193,2]
[424750541,1781124644000,-854.84562266,0.00016247,2]
[424750543,1781124644000,-854.84562266,0.00016278,2]
[424750545,1781124644000,-854.84562266,0.00016307,2]
[424750540,1781124644000,-854.84562266,0.00016207,2]
[424750546,1781124644000,-854.84562266,0.00016329,2]
[424750547,1781124644000,-5060.50245357,0.000164,2]
[424750548,1781124644000,-854.84562266,0.00016417,2]
[424750549,1781124644000,-416.8,0.00016438,2]
[424750544,1781124644000,-854.84562266,0.00016299,2]
[424750550,1781124644000,-238.46840702,0.00016438,2]
[424750533,1781124644000,-854.84562266,0.00016158,2]
[424750551,1781124644000,-151.0,0.00016438,2]
[424750552,1781124644000,-151.0,0.00016438,2]
[424750561,1781124644000,-241.49,0.000166,2]
[424750557,1781124644000,-151.0,0.00016438,2]
[424750558,1781124644000,-854.84562266,0.00016456,2]
[424750556,1781124644000,-151.0,0.00016438,2]
[424750564,1781124644000,-854.84562266,0.00016741,2]
[424750553,1781124644000,-151.0,0.00016438,2]
[424750554,1781124644000,-151.0,0.00016438,2]
[424750562,1781124644000,-1734.62772924,0.00016605,2]
[424750555,1781124644000,-151.0,0.00016438,2]
[424750559,1781124644000,-854.84562266,0.00016458,2]
[424750560,1781124644000,-854.84562266,0.00016571,2]
[424750619,1781124645000,-219581.39625198,0.00019,2]
[424750628,1781124645000,-947.0,0.00019192,5]
[424750622,1781124645000,-241.49,0.00019,2]
[424750623,1781124645000,-168.89610414,0.00019054,2]
[424750624,1781124645000,-350.0,0.00019107,3]
[424750626,1781124645000,-402.0,0.00019192,5]
[424750625,1781124645000,-160.93281423,0.00019178,2]
[424750627,1781124645000,-461.0,0.00019192,5]
[424750632,1781124645000,-620.55,0.00019238,2]
[424750621,1781124645000,-542.74007698,0.00019,2]
[424750631,1781124645000,-1000.0,0.000192,2]
[424750629,1781124645000,-316.0,0.000192,2]
[424750634,1781124645000,-151.0,0.00019345,2]
[424750637,1781124645000,-151.0,0.00019345,2]
[424750633,1781124645000,-151.0,0.00019345,2]
[424750635,1781124645000,-151.0,0.00019345,2]
[424750636,1781124645000,-151.0,0.00019345,2]
[424750639,1781124645000,-151.0,0.00019345,2]
[424750638,1781124645000,-151.0,0.00019345,2]
[424750640,1781124645000,-151.0,0.00019345,2]
[424750618,1781124645000,-300.0,0.00018999,2]
[424750641,1781124645000,-151.0,0.00019345,2]
[424750630,1781124645000,-309.0,0.000192,2]
[424750620,1781124645000,-2083.42080061,0.00019,2]
[424750605,1781124645000,-1170.58,0.000186,2]
[424750614,1781124645000,-200.0,0.00018669,2]
[424750644,1781124645000,-500.0,0.00019345,2]
[424750596,1781124645000,-306.39,0.000186,2]
[424750595,1781124645000,-282.502183,0.00018587,2]
[424750594,1781124645000,-416.8,0.0001841,2]
[424750593,1781124645000,-166.08642978,0.000184,2]
[424750597,1781124645000,-1462.58,0.000186,2]
[424750598,1781124645000,-1756.34,0.000186,2]
[424750599,1781124645000,-1180.26,0.000186,2]
[424750600,1781124645000,-1145.73,0.000186,2]
[424750602,1781124645000,-1453.12,0.000186,2]
[424750603,1781124645000,-2588.08,0.000186,2]
[424750604,1781124645000,-2268.5,0.000186,2]
[424750606,1781124645000,-2542.19,0.000186,2]
[424750601,1781124645000,-1837.96,0.000186,2]
[424750607,1781124645000,-918.48,0.000186,2]
[424750612,1781124645000,-2550.3,0.000186,2]
[424750609,1781124645000,-2827.3,0.000186,2]
[424750615,1781124645000,-1103.0,0.00018711,5]
[424750613,1781124645000,-1221.47,0.000186,2]
[424750610,1781124645000,-998.15,0.000186,2]
[424750611,1781124645000,-1506.12,0.000186,2]
[424750608,1781124645000,-409.65,0.000186,2]
[424750616,1781124645000,-2005.9555727,0.00018797,2]
[424750617,1781124645000,-300.0,0.00018999,2]
[424750642,1781124645000,-500.0,0.00019345,2]
[424750643,1781124645000,-151.0,0.00019345,2]
[424750645,1781124645000,-151.0,0.00019345,2]
[424750679,1781124645000,-372.91906083,0.00019499,2]
[424750676,1781124645000,-284.95203121,0.000194,3]
[424750675,1781124645000,-151.0,0.00019345,2]
[424750673,1781124645000,-151.0,0.00019345,2]
[424750677,1781124645000,-2000.0,0.00019461,7]
[424750678,1781124645000,-300.0,0.00019499,2]
[424750681,1781124645000,-2157.14243826,0.00019893,2]
[424750680,1781124645000,-36526.5617529,0.000195,2]
[424750690,1781124645000,-1333.0,0.0002,2]
[424750686,1781124645000,-309.0,0.0002,2]
[424750682,1781124645000,-1283.3473,0.0002,2]
[424750683,1781124645000,-151.0,0.0002,2]
[424750688,1781124645000,-274.0,0.0002,2]
[424750684,1781124645000,-652.2631735,0.0002,2]
[424750687,1781124645000,-319.0,0.0002,2]
[424750685,1781124645000,-400.0,0.0002,2]
[424750689,1781124645000,-990.0,0.0002,2]
[424750691,1781124645000,-309.0,0.0002,2]
[424750692,1781124645000,-217.0,0.0002,2]
[424750695,1781124645000,-321.0,0.0002,2]
[424750693,1781124645000,-869.0,0.0002,2]
[424750694,1781124645000,-200.0,0.0002,10]
[424750647,1781124645000,-500.0,0.00019345,2]
[424750672,1781124645000,-151.0,0.00019345,2]
[424750674,1781124645000,-151.0,0.00019345,2]
[424750696,1781124645000,-266.0,0.0002,2]
[424750671,1781124645000,-151.0,0.00019345,2]
[424750670,1781124645000,-151.0,0.00019345,2]
[424750646,1781124645000,-2080.17592889,0.00019345,2]
[424750649,1781124645000,-500.0,0.00019345,2]
[424750648,1781124645000,-151.0,0.00019345,2]
[424750657,1781124645000,-500.0,0.00019345,2]
[424750658,1781124645000,-151.0,0.00019345,2]
[424750651,1781124645000,-500.0,0.00019345,2]
[424750654,1781124645000,-151.0,0.00019345,2]
[424750652,1781124645000,-151.0,0.00019345,2]
[424750653,1781124645000,-500.0,0.00019345,2]
[424750655,1781124645000,-500.0,0.00019345,2]
[424750650,1781124645000,-151.0,0.00019345,2]
[424750659,1781124645000,-500.0,0.00019345,2]
[424750662,1781124645000,-151.0,0.00019345,2]
[424750661,1781124645000,-500.0,0.00019345,2]
[424750663,1781124645000,-151.0,0.00019345,2]
[424750668,1781124645000,-151.0,0.00019345,2]
[424750660,1781124645000,-151.0,0.00019345,2]
[424750666,1781124645000,-151.0,0.00019345,2]
[424750669,1781124645000,-151.0,0.00019345,2]
[424750667,1781124645000,-151.0,0.00019345,2]
[424750664,1781124645000,-500.0,0.00019345,2]
[424750665,1781124645000,-151.0,0.00019345,2]
[424750656,1781124645000,-151.0,0.00019345,2]
[424750732,1781124646000,-309.0,0.00021,2]
[424750727,1781124646000,-309.0,0.00021,2]
[424750726,1781124646000,-6111.0,0.00021,2]
[424750725,1781124646000,-15000.0,0.00021,2]
[424750723,1781124646000,-15000.0,0.00021,2]
[424750731,1781124646000,-1333.0,0.00021,2]
[424750722,1781124646000,-241.49,0.00021,2]
[424750730,1781124646000,-990.0,0.00021,2]
[424750735,1781124646000,-196.54678915,0.00021,2]
[424750724,1781124646000,-6111.0,0.00021,2]
[424750734,1781124646000,-869.0,0.00021,2]
[424750745,1781124646000,-671.0,0.000219,2]
[424750741,1781124646000,-620.55,0.00021161,2]
[424750738,1781124646000,-1025.0,0.00021,2]
[424750739,1781124646000,-285.0,0.00021,2]
[424750736,1781124646000,-321.0,0.00021,2]
[424750742,1781124646000,-168.89610416,0.00021232,2]
[424750737,1781124646000,-266.0,0.00021,2]
[424750740,1781124646000,-515.0,0.00021,2]
[424750744,1781124646000,-2405.55389863,0.00021537,2]
[424750743,1781124646000,-1000.0,0.00021448,2]
[424750746,1781124646000,-671.0,0.000219,2]
[424750729,1781124646000,-274.0,0.00021,2]
[424750733,1781124646000,-217.0,0.00021,2]
[424750728,1781124646000,-319.0,0.00021,2]
[424750711,1781124646000,-652.2631735,0.000206,2]
[424750720,1781124646000,-334.59,0.000209,2]
[424750749,1781124646000,-150.0,0.00021918,2]
[424750700,1781124646000,-297.95,0.0002,2]
[424750698,1781124646000,-3681.0,0.0002,2]
[424750697,1781124646000,-1025.0,0.0002,2]
[424750699,1781124646000,-12940.2,0.0002,2]
[424750702,1781124646000,-515.0,0.0002,2]
[424750708,1781124646000,-2236.95670847,0.00020441,2]
[424750701,1781124646000,-285.0,0.0002,2]
[424750707,1781124646000,-652.2631735,0.000204,2]
[424750703,1781124646000,-152.86912565,0.0002,20]
[424750705,1781124646000,-652.2631735,0.000202,2]
[424750710,1781124646000,-1060.0,0.00020548,30]
[424750704,1781124646000,-300.0,0.000201,10]
[424750709,1781124646000,-1472.55704807,0.0002046,2]
[424750706,1781124646000,-416.8,0.00020381,2]
[424750713,1781124646000,-3556.0,0.00020812,2]
[424750712,1781124646000,-652.2631735,0.000208,2]
[424750716,1781124646000,-150.0,0.00020812,2]
[424750715,1781124646000,-1274.0,0.00020812,2]
[424750714,1781124646000,-382.0,0.00020812,2]
[424750717,1781124646000,-150.0,0.00020812,2]
[424750719,1781124646000,-419.0,0.00020812,2]
[424750721,1781124646000,-2319.72410669,0.00020989,2]
[424750718,1781124646000,-933.0,0.00020812,2]
[424750747,1781124646000,-5000.0,0.00021918,2]
[424750801,1781124646000,-1030.0,0.00023215,2]
[424750753,1781124646000,-319.0,0.00022,2]
[424750780,1781124646000,-936.97418703,0.000229,2]
[424750779,1781124646000,-928.47736,0.000227,7]
[424750782,1781124646000,-309.0,0.00023,2]
[424750786,1781124646000,-1333.0,0.00023,2]
[424750783,1781124646000,-319.0,0.00023,2]
[424750787,1781124646000,-309.0,0.00023,2]
[424750784,1781124646000,-274.0,0.00023,2]
[424750785,1781124646000,-990.0,0.00023,2]
[424750789,1781124646000,-222.47177398,0.00023,3]
[424750788,1781124646000,-217.0,0.00023,2]
[424750794,1781124646000,-285.0,0.00023,2]
[424750792,1781124646000,-266.0,0.00023,2]
[424750796,1781124646000,-150.0,0.00023014,2]
[424750795,1781124646000,-515.0,0.00023,2]
[424750797,1781124646000,-620.55,0.00023085,2]
[424750790,1781124646000,-869.0,0.00023,2]
[424750793,1781124646000,-1025.0,0.00023,2]
[424750798,1781124646000,-179.0,0.00023132,10]
[424750800,1781124646000,-153.0765,0.00023215,2]
[424750799,1781124646000,-2682.57183977,0.00023181,2]
[424750802,1781124646000,-1068.11,0.00023215,2]
[424750748,1781124646000,-150.0,0.00021918,2]
[424750803,1781124646000,-174.61919141,0.00023215,2]
[424750778,1781124646000,-232.109339,0.000227,7]
[424750781,1781124646000,-936.974187,0.000229,2]
[424750791,1781124646000,-321.0,0.00023,2]
[424750772,1781124646000,-570.0,0.00022405,2]
[424750750,1781124646000,-570.0,0.00021994,2]
[424750752,1781124646000,-309.0,0.00022,2]
[424750777,1781124646000,-350.0,0.00022669,4]
[424750751,1781124646000,-450.0,0.00022,2]
[424750754,1781124646000,-274.0,0.00022,2]
[424750755,1781124646000,-990.0,0.00022,2]
[424750765,1781124646000,-515.0,0.00022,2]
[424750757,1781124646000,-1333.0,0.00022,2]
[424750761,1781124646000,-321.0,0.00022,2]
[424750762,1781124646000,-266.0,0.00022,2]
[424750764,1781124646000,-285.0,0.00022,2]
[424750763,1781124646000,-1025.0,0.00022,2]
[424750759,1781124646000,-217.0,0.00022,2]
[424750771,1781124646000,-1128.98,0.00022373,2]
[424750760,1781124646000,-869.0,0.00022,2]
[424750766,1781124646000,-2494.55939288,0.00022085,2]
[424750767,1781124646000,-2504.46,0.00022087,2]
[424750768,1781124646000,-257.35,0.000221,14]
[424750774,1781124646000,-1543.41,0.00022466,2]
[424750775,1781124646000,-2186.52,0.00022466,2]
[424750770,1781124646000,-1170.68,0.0002237,2]
[424750769,1781124646000,-416.8,0.00022353,2]
[424750758,1781124646000,-309.0,0.00022,2]
[424750773,1781124646000,-236.47213952,0.00022405,2]
[424750776,1781124646000,-2586.85809042,0.00022633,2]
[424750841,1781124647000,-152.0,0.00023215,2]
[424750839,1781124647000,-151.0,0.00023215,2]
[424750837,1781124647000,-151.0,0.00023215,2]
[424750836,1781124647000,-2054.15682156,0.00023215,2]
[424750842,1781124647000,-151.0,0.00023215,2]
[424750834,1781124647000,-151.0,0.00023215,2]
[424750835,1781124647000,-152.0,0.00023215,2]
[424750832,1781124647000,-1910.18787185,0.00023215,2]
[424750840,1781124647000,-693.39197629,0.00023215,2]
[424750838,1781124647000,-152.0,0.00023215,2]
[424750845,1781124647000,-151.0,0.00023215,2]
[424750863,1781124647000,-801.85129954,0.00023435,2]
[424750844,1781124647000,-152.0,0.00023215,2]
[424750846,1781124647000,-152.0,0.00023215,2]
[424750848,1781124647000,-152.0,0.00023215,2]
[424750843,1781124647000,-151.0,0.00023215,2]
[424750851,1781124647000,-209.40437684,0.00023215,2]
[424750847,1781124647000,-151.0,0.00023215,2]
[424750849,1781124647000,-152.0,0.00023215,2]
[424750850,1781124647000,-152.0,0.00023215,2]
[424750852,1781124647000,-152.0,0.00023215,2]
[424750855,1781124647000,-719.04747942,0.0002327,2]
[424750864,1781124647000,-151.0,0.0002349,2]
[424750833,1781124647000,-1980.8648231,0.00023215,2]
[424750853,1781124647000,-152.0,0.00023215,2]
[424750824,1781124647000,-151.0,0.00023215,2]
[424750805,1781124647000,-154.15483266,0.00023215,2]
[424750825,1781124647000,-1776.30922209,0.00023215,2]
[424750854,1781124647000,-151.0,0.0002327,2]
[424750808,1781124647000,-1191.11104074,0.00023215,2]
[424750806,1781124647000,-209.40437684,0.00023215,2]
[424750807,1781124647000,-1148.61238259,0.00023215,2]
[424750804,1781124647000,-1107.63007,0.00023215,2]
[424750810,1781124647000,-578.20924308,0.00023215,2]
[424750809,1781124647000,-1235.18214925,0.00023215,2]
[424750818,1781124647000,-1592.87721992,0.00023215,2]
[424750813,1781124647000,-1377.42282658,0.00023215,2]
[424750815,1781124647000,-1428.38747117,0.00023215,2]
[424750812,1781124647000,-1328.27659266,0.00023215,2]
[424750817,1781124647000,-1536.04360648,0.00023215,2]
[424750811,1781124647000,-1280.88388877,0.00023215,2]
[424750814,1781124647000,-151.0,0.00023215,2]
[424750819,1781124647000,-151.0,0.00023215,2]
[424750816,1781124647000,-1481.2378076,0.00023215,2]
[424750821,1781124647000,-209.40437684,0.00023215,2]
[424750822,1781124647000,-151.0,0.00023215,2]
[424750829,1781124647000,-1842.0326633,0.00023215,2]
[424750830,1781124647000,-152.0,0.00023215,2]
[424750831,1781124647000,-151.0,0.00023215,2]
[424750820,1781124647000,-1651.81367706,0.00023215,2]
[424750826,1781124647000,-151.0,0.00023215,2]
[424750823,1781124647000,-1712.93078311,0.00023215,2]
[424750827,1781124647000,-151.0,0.00023215,2]
[424750828,1781124647000,-151.0,0.00023215,2]
[424750857,1781124647000,-151.0,0.00023325,2]
[424750879,1781124647000,-151.0,0.00023763,2]
[424750858,1781124647000,-745.65223615,0.00023325,2]
[424750891,1781124647000,-1170.68,0.00023833,7]
[424750890,1781124647000,-419.0,0.00023812,2]
[424750895,1781124647000,-309.0,0.00024,2]
[424750894,1781124647000,-500.0,0.00024,2]
[424750896,1781124647000,-319.0,0.00024,2]
[424750893,1781124647000,-233.45838366,0.00023883,2]
[424750898,1781124647000,-990.0,0.00024,2]
[424750897,1781124647000,-274.0,0.00024,2]
[424750902,1781124647000,-869.0,0.00024,2]
[424750900,1781124647000,-309.0,0.00024,2]
[424750899,1781124647000,-1333.0,0.00024,2]
[424750892,1781124647000,-233.45838366,0.00023883,2]
[424750901,1781124647000,-217.0,0.00024,2]
[424750905,1781124647000,-1025.0,0.00024,2]
[424750908,1781124647000,-150.0,0.00024164,2]
[424750906,1781124647000,-285.0,0.00024,2]
[424750903,1781124647000,-321.0,0.00024,2]
[424750904,1781124647000,-266.0,0.00024,2]
[424750907,1781124647000,-515.0,0.00024,2]
[424750910,1781124647000,-187.78006524,0.00024311,2]
[424750912,1781124647000,-250.12665989,0.00024311,2]
[424750913,1781124647000,-416.8,0.00024324,2]
[424750914,1781124647000,-170.1,0.00024658,2]
[424750856,1781124647000,-150.0,0.00023288,2]
[424750909,1781124647000,-2884.75459676,0.00024277,2]
[424750888,1781124647000,-150.0,0.00023812,2]
[424750911,1781124647000,-225.18697532,0.00024311,2]
[424750889,1781124647000,-933.0,0.00023812,2]
[424750862,1781124647000,-151.0,0.00023435,2]
[424750860,1781124647000,-773.24136889,0.0002338,2]
[424750861,1781124647000,-241.49,0.000234,7]
[424750859,1781124647000,-151.0,0.0002338,2]
[424750866,1781124647000,-1472.55704807,0.00023539,2]
[424750865,1781124647000,-831.51979762,0.0002349,2]
[424750868,1781124647000,-862.28603014,0.00023545,2]
[424750887,1781124647000,-1274.0,0.00023812,2]
[424750873,1781124647000,-961.58486558,0.0002371,2]
[424750870,1781124647000,-151.0,0.000236,2]
[424750871,1781124647000,-927.27566594,0.00023655,2]
[424750869,1781124647000,-894.19061325,0.000236,2]
[424750867,1781124647000,-151.0,0.00023545,2]
[424750874,1781124647000,-151.0,0.0002371,2]
[424750872,1781124647000,-151.0,0.00023655,2]
[424750885,1781124647000,-3556.0,0.00023812,2]
[424750884,1781124647000,-295.96839265,0.00023812,2]
[424750883,1781124647000,-250.91687046,0.00023812,2]
[424750878,1781124647000,-151.0,0.00023763,2]
[424750886,1781124647000,-382.0,0.00023812,2]
[424750881,1781124647000,-997.16350561,0.00023765,2]
[424750880,1781124647000,-272.09555376,0.00023763,2]
[424750882,1781124647000,-151.0,0.00023765,2]
[424750877,1781124647000,-217.15233878,0.00023763,2]
[424750875,1781124647000,-2781.82699784,0.00023729,2]
[424750876,1781124647000,-181.08010149,0.00023763,2]
[424750946,1781124648000,-416.8,0.00026296,2]
[424750948,1781124648000,-1164.202069,0.00026384,2]
[424750947,1781124648000,-1164.202069,0.00026384,2]
[424750945,1781124648000,-150.0,0.00026028,2]
[424750950,1781124648000,-1164.202069,0.00026384,2]
[424750949,1781124648000,-1164.202069,0.00026384,2]
[424750944,1781124648000,-212.90411167,0.00026,2]
[424750951,1781124648000,-1164.202069,0.00026384,2]
[424750941,1781124648000,-209.40437684,0.00025955,2]
[424750943,1781124648000,-550.0,0.00026,2]
[424750952,1781124648000,-1164.202069,0.00026384,2]
[424750964,1781124648000,-382.0,0.00026812,2]
[424750955,1781124648000,-1164.202069,0.00026384,2]
[424750956,1781124648000,-1164.202069,0.00026384,2]
[424750954,1781124648000,-1164.202069,0.00026384,2]
[424750957,1781124648000,-1164.202069,0.00026384,2]
[424750958,1781124648000,-1164.202069,0.00026384,2]
[424750963,1781124648000,-3556.0,0.00026812,2]
[424750962,1781124648000,-1170.68,0.0002676,7]
[424750953,1781124648000,-1164.202069,0.00026384,2]
[424750959,1781124648000,-217.15233878,0.00026503,2]
[424750960,1781124648000,-1472.55704807,0.00026618,2]
[424750965,1781124648000,-1274.0,0.00026812,2]
[424750961,1781124648000,-150.0,0.00026641,2]
[424750942,1781124648000,-159.0,0.00025966,2]
[424750925,1781124648000,-328.0,0.00025,2]
[424750931,1781124648000,-293.0,0.00025,2]
[424750966,1781124648000,-933.0,0.00026812,2]
[424750918,1781124648000,-194.72792766,0.00024859,2]
[424750916,1781124648000,-150.0,0.00024658,2]
[424750917,1781124648000,-2991.49051684,0.00024825,2]
[424750920,1781124648000,-321.0,0.00025,2]
[424750915,1781124648000,-1000.0,0.00024658,2]
[424750919,1781124648000,-218.05361821,0.00024859,2]
[424750921,1781124648000,-323.0,0.00025,2]
[424750922,1781124648000,-287.0,0.00025,2]
[424750926,1781124648000,-223.0,0.00025,2]
[424750923,1781124648000,-998.0,0.00025,2]
[424750928,1781124648000,-331.45963809,0.00025,2]
[424750930,1781124648000,-1028.0,0.00025,2]
[424750924,1781124648000,-1335.0,0.00025,2]
[424750927,1781124648000,-873.0,0.00025,2]
[424750929,1781124648000,-268.0,0.00025,2]
[424750932,1781124648000,-532.68090141,0.00025,2]
[424750940,1781124648000,-151.0,0.00025954,2]
[424750935,1781124648000,-150.0,0.00025373,2]
[424750936,1781124648000,-241.49,0.000254,7]
[424750937,1781124648000,-201.93286098,0.00025407,2]
[424750934,1781124648000,-1170.68,0.00025297,7]
[424750933,1781124648000,-180.37572735,0.00025068,2]
[424750938,1781124648000,-350.0,0.00025769,7]
[424750968,1781124648000,-182.0,0.00026928,2]
[424750939,1781124648000,-599.60298507,0.00025954,2]
[424750973,1781124648000,-150.0,0.00027397,2]
[424751000,1781124648000,-150.0,0.00027397,2]
[424750997,1781124648000,-150.0,0.00027397,2]
[424750999,1781124648000,-150.0,0.00027397,2]
[424751007,1781124648000,-150.0,0.00027397,2]
[424751002,1781124648000,-150.0,0.00027397,2]
[424751006,1781124648000,-150.0,0.00027397,2]
[424751003,1781124648000,-150.0,0.00027397,2]
[424751004,1781124648000,-150.0,0.00027397,2]
[424751001,1781124648000,-150.0,0.00027397,2]
[424751005,1781124648000,-150.0,0.00027397,2]
[424751008,1781124648000,-150.0,0.00027397,2]
[424750998,1781124648000,-150.0,0.00027397,2]
[424750969,1781124648000,-225.18697532,0.00027051,2]
[424751010,1781124648000,-150.0,0.00027397,2]
[424751016,1781124648000,-150.0,0.00027397,2]
[424751015,1781124648000,-150.0,0.00027397,2]
[424751011,1781124648000,-150.0,0.00027397,2]
[424751017,1781124648000,-150.0,0.00027397,2]
[424751013,1781124648000,-150.0,0.00027397,2]
[424751014,1781124648000,-150.0,0.00027397,2]
[424751018,1781124648000,-150.0,0.00027397,2]
[424751020,1781124648000,-150.0,0.00027397,2]
[424751021,1781124648000,-150.0,0.00027397,2]
[424751019,1781124648000,-150.0,0.00027397,2]
[424751012,1781124648000,-150.0,0.00027397,2]
[424750992,1781124648000,-150.0,0.00027397,2]
[424751009,1781124648000,-150.0,0.00027397,2]
[424750988,1781124648000,-150.0,0.00027397,2]
[424750991,1781124648000,-150.0,0.00027397,2]
[424750967,1781124648000,-419.0,0.00026812,2]
[424750972,1781124648000,-150.0,0.00027397,2]
[424750971,1781124648000,-150.0,0.00027397,2]
[424750970,1781124648000,-217.41178917,0.000273,30]
[424750975,1781124648000,-150.0,0.00027397,2]
[424750983,1781124648000,-150.0,0.00027397,2]
[424750974,1781124648000,-150.0,0.00027397,2]
[424750979,1781124648000,-150.0,0.00027397,2]
[424750981,1781124648000,-150.0,0.00027397,2]
[424750978,1781124648000,-150.0,0.00027397,2]
[424750984,1781124648000,-150.0,0.00027397,2]
[424750977,1781124648000,-150.0,0.00027397,2]
[424750980,1781124648000,-150.0,0.00027397,2]
[424750996,1781124648000,-150.0,0.00027397,2]
[424750976,1781124648000,-150.0,0.00027397,2]
[424750990,1781124648000,-150.0,0.00027397,2]
[424750989,1781124648000,-150.0,0.00027397,2]
[424750995,1781124648000,-150.0,0.00027397,2]
[424750994,1781124648000,-150.0,0.00027397,2]
[424750986,1781124648000,-150.0,0.00027397,2]
[424750987,1781124648000,-150.0,0.00027397,2]
[424750985,1781124648000,-150.0,0.00027397,2]
[424750982,1781124648000,-150.0,0.00027397,2]
[424750993,1781124648000,-150.0,0.00027397,2]
[424751042,1781124649000,-500.0,0.00027397,2]
[424751038,1781124649000,-153.80113636,0.00027397,2]
[424751037,1781124649000,-150.0,0.00027397,2]
[424751040,1781124649000,-500.0,0.00027397,2]
[424751041,1781124649000,-500.0,0.00027397,2]
[424751050,1781124649000,-690.449836,0.00027397,2]
[424751044,1781124649000,-1500.0,0.00027397,2]
[424751046,1781124649000,-151.0,0.00027397,2]
[424751045,1781124649000,-515.39,0.00027397,2]
[424751039,1781124649000,-287.12968921,0.00027397,2]
[424751043,1781124649000,-347.0,0.00027397,2]
[424751035,1781124649000,-150.0,0.00027397,2]
[424751024,1781124649000,-150.0,0.00027397,2]
[424751034,1781124649000,-150.0,0.00027397,2]